[Event "Titled Tuesday Blitz November 14 Early 2023"]
[White "Alinasab, Mobina"]
[Black "Movahed, Sina"]
[WhiteFideId "12528897"]
[BlackFideId "42520835"]
[WhiteElo "2533"]
[BlackElo "3061"]
[Result "1-0"]
[Round "3"]
[TimeControl "180+1"]
[Date "2023.11.14"]
[WhiteClock "0:00:08"]
[BlackClock "0:00:32"]
[Board "68"]

1. e4 {[%clk 0:03:00]}  c5 {[%clk 0:03:00]} 2. Nf3 {[%clk 0:02:59]}  d6 {[%clk 0:02:55]} 3. d4 {[%clk 0:02:59]}  cxd4 {[%clk 0:02:56]} 4. Nxd4 {[%clk 0:03:00]}  Nf6 {[%clk 0:02:57]} 5. Nc3 {[%clk 0:03:01]}  a6 {[%clk 0:02:57]} 6. Be3 {[%clk 0:02:54]}  Ng4 {[%clk 0:02:57]} 7. Bc1 {[%clk 0:02:50]}  Nc6 {[%clk 0:02:56]} 8. h3 {[%clk 0:02:47]}  Nf6 {[%clk 0:02:57]} 9. Be3 {[%clk 0:02:47]}  e5 {[%clk 0:02:55]} 10. Nf3 {[%clk 0:02:47]}  h6 {[%clk 0:02:55]} 11. Nd5 {[%clk 0:01:31]}  Nxd5 {[%clk 0:02:54]} 12. exd5 {[%clk 0:01:30]}  Ne7 {[%clk 0:02:55]} 13. c4 {[%clk 0:01:29]}  Ng6 {[%clk 0:02:54]} 14. a4 {[%clk 0:01:21]}  a5 {[%clk 0:02:52]} 15. Rc1 {[%clk 0:01:14]}  b6 {[%clk 0:02:51]} 16. Nd2 {[%clk 0:01:10]}  f5 {[%clk 0:02:49]} 17. Qh5 {[%clk 0:01:07]}  Qf6 {[%clk 0:02:48]} 18. Bxb6 {[%clk 0:01:02]}  Be7 {[%clk 0:02:48]} 19. c5 {[%clk 0:01:01]}  O-O {[%clk 0:02:44]} 20. c6 {[%clk 0:00:46]}  e4 {[%clk 0:02:42]} 21. Nc4 {[%clk 0:00:41]}  Ba6 {[%clk 0:02:37]} 22. Qd1 {[%clk 0:00:31]}  f4 {[%clk 0:02:33]} 23. Bd4 {[%clk 0:00:16]}  Qf7 {[%clk 0:02:33]} 24. Nb6 {[%clk 0:00:15]}  Bxf1 {[%clk 0:02:33]} 25. Kxf1 {[%clk 0:00:13]}  Bh4 {[%clk 0:01:58]} 26. c7 {[%clk 0:00:10]}  e3 {[%clk 0:01:52]} 27. Nxa8 {[%clk 0:00:10]}  Bxf2 {[%clk 0:01:29]} 28. c8=Q {[%clk 0:00:09]}  Rxc8 {[%clk 0:01:29]} 29. Rxc8+ {[%clk 0:00:10]}  Kh7 {[%clk 0:01:30]} 30. Bc3 {[%clk 0:00:10]}  Ne7 {[%clk 0:01:22]} 31. Rc7 {[%clk 0:00:10]}  Nf5 {[%clk 0:01:22]} 32. Qf3 {[%clk 0:00:07]}  Qe8 {[%clk 0:00:32]} 33. g4 {[%clk 0:00:08]} 1-0


[Site "https://www.chess.com"]

[Event "Titled Tuesday Blitz November 14 Early 2023"]
[White "Niemann, Hans Moke"]
[Black "brm72"]
[WhiteFideId "2093596"]
[WhiteElo "3028"]
[BlackElo "2533"]
[Result "1-0"]
[Round "3"]
[TimeControl "180+1"]
[Date "2023.11.14"]
[WhiteClock "0:01:02"]
[BlackClock "0:00:05"]
[Board "69"]

1. e4 {[%clk 0:03:00]}  e6 {[%clk 0:02:59]} 2. d4 {[%clk 0:03:00]}  d5 {[%clk 0:02:59]} 3. Nc3 {[%clk 0:03:01]}  Bb4 {[%clk 0:02:56]} 4. Ne2 {[%clk 0:02:57]}  dxe4 {[%clk 0:02:52]} 5. a3 {[%clk 0:02:55]}  Bxc3+ {[%clk 0:02:51]} 6. Nxc3 {[%clk 0:02:56]}  Nf6 {[%clk 0:02:49]} 7. Bg5 {[%clk 0:02:56]}  h6 {[%clk 0:02:36]} 8. Bh4 {[%clk 0:02:55]}  Nc6 {[%clk 0:02:32]} 9. Bb5 {[%clk 0:02:48]}  Bd7 {[%clk 0:02:26]} 10. Nxe4 {[%clk 0:02:47]}  g5 {[%clk 0:02:24]} 11. Nxf6+ {[%clk 0:02:47]}  Qxf6 {[%clk 0:02:25]} 12. Bg3 {[%clk 0:02:48]}  Qg6 {[%clk 0:02:16]} 13. Bxc7 {[%clk 0:02:38]}  Qe4+ {[%clk 0:02:12]} 14. Qe2 {[%clk 0:02:38]}  Qxe2+ {[%clk 0:02:00]} 15. Bxe2 {[%clk 0:02:37]}  Nxd4 {[%clk 0:02:00]} 16. Bd3 {[%clk 0:02:35]}  f6 {[%clk 0:01:54]} 17. c3 {[%clk 0:02:31]}  Nc6 {[%clk 0:01:52]} 18. Bg6+ {[%clk 0:02:27]}  Ke7 {[%clk 0:01:50]} 19. O-O-O {[%clk 0:02:28]}  f5 {[%clk 0:01:39]} 20. Rhe1 {[%clk 0:02:27]}  Rac8 {[%clk 0:01:26]} 21. Bd6+ {[%clk 0:02:25]}  Kf6 {[%clk 0:01:25]} 22. Bh5 {[%clk 0:02:26]}  e5 {[%clk 0:01:18]} 23. Bxe5+ {[%clk 0:02:20]}  Nxe5 {[%clk 0:01:18]} 24. Rd5 {[%clk 0:02:09]}  Be8 {[%clk 0:00:52]} 25. Bd1 {[%clk 0:02:07]}  Nc6 {[%clk 0:00:44]} 26. Bc2 {[%clk 0:02:07]}  Rd8 {[%clk 0:00:28]} 27. Rxf5+ {[%clk 0:02:04]}  Kg7 {[%clk 0:00:29]} 28. Rb5 {[%clk 0:01:59]}  b6 {[%clk 0:00:28]} 29. f3 {[%clk 0:01:52]}  Nd4 {[%clk 0:00:28]} 30. Rbe5 {[%clk 0:01:28]}  Nxc2 {[%clk 0:00:28]} 31. Kxc2 {[%clk 0:01:29]}  Bg6+ {[%clk 0:00:28]} 32. Kb3 {[%clk 0:01:25]}  Rd2 {[%clk 0:00:26]} 33. Re7+ {[%clk 0:01:24]}  Bf7+ {[%clk 0:00:26]} 34. c4 {[%clk 0:01:23]}  Rhd8 {[%clk 0:00:25]} 35. Rxa7 {[%clk 0:01:21]}  R8d3+ {[%clk 0:00:25]} 36. Ka4 {[%clk 0:01:20]}  Kg6 {[%clk 0:00:22]} 37. b3 {[%clk 0:01:19]}  Rb2 {[%clk 0:00:19]} 38. Ree7 {[%clk 0:01:17]}  Rbxb3 {[%clk 0:00:16]} 39. Rxf7 {[%clk 0:01:17]}  Rxa3+ {[%clk 0:00:15]} 40. Kb5 {[%clk 0:01:18]}  Rdb3+ {[%clk 0:00:16]} 41. Kc6 {[%clk 0:01:18]}  Rxa7 {[%clk 0:00:14]} 42. Rxa7 {[%clk 0:01:18]}  Rb2 {[%clk 0:00:14]} 43. g4 {[%clk 0:01:18]}  h5 {[%clk 0:00:14]} 44. h3 {[%clk 0:01:17]}  hxg4 {[%clk 0:00:14]} 45. fxg4 {[%clk 0:01:12]}  Rb3 {[%clk 0:00:15]} 46. Rd7 {[%clk 0:01:07]}  Kf6 {[%clk 0:00:14]} 47. Rd5 {[%clk 0:01:06]}  Rb4 {[%clk 0:00:13]} 48. Rf5+ {[%clk 0:01:02]}  Kg6 {[%clk 0:00:12]} 49. Kd5 {[%clk 0:01:03]}  Rb3 {[%clk 0:00:11]} 50. Kc6 {[%clk 0:01:03]}  Rb4 {[%clk 0:00:11]} 51. Kd5 {[%clk 0:01:04]}  Rb3 {[%clk 0:00:12]} 52. Re5 {[%clk 0:01:05]}  Rd3+ {[%clk 0:00:10]} 53. Kc6 {[%clk 0:01:04]}  Rxh3 {[%clk 0:00:09]} 54. Kxb6 {[%clk 0:01:04]}  Rc3 {[%clk 0:00:08]} 55. Re4 {[%clk 0:01:03]}  Rb3+ {[%clk 0:00:08]} 56. Kc6 {[%clk 0:01:02]}  Kf6 {[%clk 0:00:09]} 57. c5 {[%clk 0:01:02]}  Rb1 {[%clk 0:00:08]} 58. Kc7 {[%clk 0:01:02]}  Rc1 {[%clk 0:00:08]} 59. c6 {[%clk 0:01:02]}  Kf7 {[%clk 0:00:08]} 60. Kd7 {[%clk 0:01:02]}  Rd1+ {[%clk 0:00:05]} 61. Kc8 {[%clk 0:01:02]} 1-0


[Site "https://www.chess.com"]

[Event "Titled Tuesday Blitz November 14 Early 2023"]
[White "Postlmayer, Jakob"]
[Black "Bortnyk, Olexandr"]
[WhiteFideId "1643622"]
[BlackFideId "14120828"]
[WhiteElo "2532"]
[BlackElo "2999"]
[Result "0-1"]
[Round "3"]
[TimeControl "180+1"]
[Date "2023.11.14"]
[WhiteClock "0:00:58"]
[BlackClock "0:00:40"]
[Board "70"]

1. d4 {[%clk 0:03:00]}  d6 {[%clk 0:02:58]} 2. e4 {[%clk 0:02:58]}  Nf6 {[%clk 0:02:59]} 3. Nc3 {[%clk 0:02:58]}  e5 {[%clk 0:02:58]} 4. Nf3 {[%clk 0:02:57]}  Nbd7 {[%clk 0:02:58]} 5. Bc4 {[%clk 0:02:56]}  Be7 {[%clk 0:02:58]} 6. O-O {[%clk 0:02:56]}  c6 {[%clk 0:02:59]} 7. a4 {[%clk 0:02:56]}  a5 {[%clk 0:02:58]} 8. Qe2 {[%clk 0:02:55]}  O-O {[%clk 0:02:57]} 9. Rd1 {[%clk 0:02:55]}  Qc7 {[%clk 0:02:57]} 10. Ba2 {[%clk 0:02:54]}  exd4 {[%clk 0:02:52]} 11. Nxd4 {[%clk 0:02:54]}  Nc5 {[%clk 0:02:53]} 12. h3 {[%clk 0:02:50]}  Re8 {[%clk 0:02:53]} 13. Qf3 {[%clk 0:02:43]}  Bf8 {[%clk 0:02:52]} 14. Re1 {[%clk 0:02:16]}  d5 {[%clk 0:02:00]} 15. Bf4 {[%clk 0:02:16]}  Qb6 {[%clk 0:02:00]} 16. exd5 {[%clk 0:02:14]}  Bd7 {[%clk 0:01:56]} 17. dxc6 {[%clk 0:02:10]}  bxc6 {[%clk 0:01:43]} 18. Bg5 {[%clk 0:01:51]}  Be7 {[%clk 0:00:54]} 19. Rab1 {[%clk 0:01:23]}  Nxa4 {[%clk 0:00:47]} 20. Nxa4 {[%clk 0:01:20]}  Qxd4 {[%clk 0:00:47]} 21. Nc3 {[%clk 0:01:19]}  Qc5 {[%clk 0:00:45]} 22. Be3 {[%clk 0:01:15]}  Qf5 {[%clk 0:00:45]} 23. Qxf5 {[%clk 0:01:05]}  Bxf5 {[%clk 0:00:46]} 24. Bb3 {[%clk 0:01:05]}  Bb4 {[%clk 0:00:41]} 25. Bd4 {[%clk 0:01:05]}  Rxe1+ {[%clk 0:00:39]} 26. Rxe1 {[%clk 0:01:04]}  a4 {[%clk 0:00:40]} 27. Bc4 {[%clk 0:01:02]}  Bxc2 {[%clk 0:00:40]} 28. Re7 {[%clk 0:00:58]}  Bxe7 {[%clk 0:00:40]} 0-1


[Site "https://www.chess.com"]

[Event "Titled Tuesday Blitz November 14 Early 2023"]
[White "TomLiu777"]
[Black "Oparin, Grigoriy"]
[BlackFideId "24125890"]
[WhiteElo "2532"]
[BlackElo "2989"]
[Result "0-1"]
[Round "3"]
[TimeControl "180+1"]
[Date "2023.11.14"]
[WhiteClock "0:00:00"]
[BlackClock "0:00:18"]
[Board "71"]

1. c4 {[%clk 0:02:59]}  Nf6 {[%clk 0:02:57]} 2. Nc3 {[%clk 0:02:59]}  e5 {[%clk 0:02:58]} 3. Nf3 {[%clk 0:02:58]}  Nc6 {[%clk 0:02:58]} 4. e4 {[%clk 0:02:58]}  b6 {[%clk 0:02:58]} 5. d4 {[%clk 0:02:51]}  exd4 {[%clk 0:02:58]} 6. Nxd4 {[%clk 0:02:51]}  Bb7 {[%clk 0:02:55]} 7. Nc2 {[%clk 0:02:46]}  Bc5 {[%clk 0:02:52]} 8. Be2 {[%clk 0:02:45]}  O-O {[%clk 0:02:48]} 9. O-O {[%clk 0:02:35]}  Re8 {[%clk 0:02:48]} 10. Bg5 {[%clk 0:02:34]}  h6 {[%clk 0:02:48]} 11. Bxf6 {[%clk 0:02:28]}  Qxf6 {[%clk 0:02:49]} 12. Nd5 {[%clk 0:02:28]}  Qd8 {[%clk 0:02:49]} 13. b4 {[%clk 0:02:18]}  Bf8 {[%clk 0:02:49]} 14. Bd3 {[%clk 0:02:08]}  Ne5 {[%clk 0:02:48]} 15. f4 {[%clk 0:02:06]}  Nxd3 {[%clk 0:02:43]} 16. Qxd3 {[%clk 0:02:07]}  a5 {[%clk 0:02:40]} 17. a3 {[%clk 0:02:03]}  c6 {[%clk 0:02:29]} 18. Nc3 {[%clk 0:01:55]}  axb4 {[%clk 0:02:01]} 19. axb4 {[%clk 0:01:56]}  Rxa1 {[%clk 0:02:01]} 20. Rxa1 {[%clk 0:01:55]}  Qf6 {[%clk 0:02:02]} 21. Ra7 {[%clk 0:01:29]}  Bc8 {[%clk 0:01:51]} 22. g3 {[%clk 0:01:29]}  Qg6 {[%clk 0:01:39]} 23. Ra1 {[%clk 0:01:01]}  h5 {[%clk 0:01:39]} 24. Rd1 {[%clk 0:00:58]}  h4 {[%clk 0:01:37]} 25. Kf2 {[%clk 0:00:56]}  d6 {[%clk 0:01:28]} 26. Ne3 {[%clk 0:00:48]}  Qh5 {[%clk 0:01:25]} 27. Qe2 {[%clk 0:00:41]}  Qh6 {[%clk 0:01:12]} 28. Qf3 {[%clk 0:00:25]}  d5 {[%clk 0:01:10]} 29. cxd5 {[%clk 0:00:23]}  Bxb4 {[%clk 0:01:10]} 30. Ne2 {[%clk 0:00:19]}  cxd5 {[%clk 0:01:09]} 31. Rxd5 {[%clk 0:00:18]}  Bc5 {[%clk 0:01:06]} 32. Kg2 {[%clk 0:00:13]}  hxg3 {[%clk 0:01:03]} 33. Rh5 {[%clk 0:00:06]}  Qe6 {[%clk 0:00:45]} 34. Nxg3 {[%clk 0:00:07]}  Qa2+ {[%clk 0:00:45]} 35. Ne2 {[%clk 0:00:06]}  Rxe4 {[%clk 0:00:38]} 36. Qxe4 {[%clk 0:00:04]}  Qxe2+ {[%clk 0:00:39]} 37. Kh1 {[%clk 0:00:03]}  Qxh5 {[%clk 0:00:17]} 38. Qe8+ {[%clk 0:00:03]}  Kh7 {[%clk 0:00:18]} 39. Qxc8 {[%clk 0:00:00]}  Bxe3 {[%clk 0:00:18]} 0-1


[Site "https://www.chess.com"]

[Event "Titled Tuesday Blitz November 14 Early 2023"]
[White "Ben Artzi, Ido"]
[Black "Makarian, Rudik"]
[WhiteFideId "2810913"]
[BlackFideId "44105681"]
[WhiteElo "2530"]
[BlackElo "2971"]
[Result "1-0"]
[Round "3"]
[TimeControl "180+1"]
[Date "2023.11.14"]
[WhiteClock "0:00:02"]
[BlackClock "0:00:00"]
[Board "72"]

1. d4 {[%clk 0:03:00]}  Nf6 {[%clk 0:02:59]} 2. c4 {[%clk 0:03:01]}  e6 {[%clk 0:02:59]} 3. Nc3 {[%clk 0:03:01]}  d5 {[%clk 0:03:00]} 4. cxd5 {[%clk 0:03:00]}  exd5 {[%clk 0:03:01]} 5. Bg5 {[%clk 0:03:01]}  c6 {[%clk 0:03:02]} 6. e3 {[%clk 0:03:01]}  Bf5 {[%clk 0:03:02]} 7. Qf3 {[%clk 0:03:01]}  Bg6 {[%clk 0:02:56]} 8. Bxf6 {[%clk 0:03:01]}  Qxf6 {[%clk 0:02:57]} 9. Qxf6 {[%clk 0:03:01]}  gxf6 {[%clk 0:02:54]} 10. h4 {[%clk 0:03:02]}  h5 {[%clk 0:02:43]} 11. Nh3 {[%clk 0:03:01]}  Bd6 {[%clk 0:02:38]} 12. Kd2 {[%clk 0:03:01]}  Nd7 {[%clk 0:02:29]} 13. Bd3 {[%clk 0:03:01]}  a5 {[%clk 0:02:29]} 14. Ne2 {[%clk 0:02:58]}  Nb6 {[%clk 0:02:19]} 15. b3 {[%clk 0:02:55]}  Kd7 {[%clk 0:02:17]} 16. Nhf4 {[%clk 0:02:54]}  Rhg8 {[%clk 0:02:15]} 17. Ng3 {[%clk 0:02:43]}  Bxf4 {[%clk 0:02:15]} 18. exf4 {[%clk 0:02:44]}  Bxd3 {[%clk 0:02:15]} 19. Kxd3 {[%clk 0:02:44]}  Rh8 {[%clk 0:02:12]} 20. Nf5 {[%clk 0:02:23]}  Rae8 {[%clk 0:02:08]} 21. f3 {[%clk 0:01:57]}  Nc8 {[%clk 0:02:06]} 22. g4 {[%clk 0:01:53]}  Reg8 {[%clk 0:02:02]} 23. g5 {[%clk 0:01:34]}  Nd6 {[%clk 0:01:57]} 24. Ne3 {[%clk 0:00:55]}  Re8 {[%clk 0:01:48]} 25. Rhg1 {[%clk 0:00:50]}  f5 {[%clk 0:01:35]} 26. g6 {[%clk 0:00:45]}  f6 {[%clk 0:01:19]} 27. g7 {[%clk 0:00:45]}  Rhg8 {[%clk 0:01:07]} 28. Rg6 {[%clk 0:00:46]}  Ke6 {[%clk 0:01:06]} 29. Rag1 {[%clk 0:00:32]}  Kf7 {[%clk 0:01:06]} 30. R6g2 {[%clk 0:00:17]}  Ra8 {[%clk 0:00:57]} 31. a4 {[%clk 0:00:17]}  Ra6 {[%clk 0:00:57]} 32. Nd1 {[%clk 0:00:16]}  Ne8 {[%clk 0:00:53]} 33. Ne3 {[%clk 0:00:15]}  Nd6 {[%clk 0:00:51]} 34. Nd1 {[%clk 0:00:14]}  Raa8 {[%clk 0:00:51]} 35. Ne3 {[%clk 0:00:13]}  Rab8 {[%clk 0:00:50]} 36. Nd1 {[%clk 0:00:12]}  Rbe8 {[%clk 0:00:45]} 37. Ne3 {[%clk 0:00:12]}  Re7 {[%clk 0:00:45]} 38. Rc2 {[%clk 0:00:10]}  Rxg7 {[%clk 0:00:23]} 39. Rxg7+ {[%clk 0:00:10]}  Kxg7 {[%clk 0:00:23]} 40. Rc5 {[%clk 0:00:10]}  Kf7 {[%clk 0:00:24]} 41. Rxa5 {[%clk 0:00:10]}  Ke6 {[%clk 0:00:24]} 42. Ra8 {[%clk 0:00:10]}  Re8 {[%clk 0:00:21]} 43. Rxe8+ {[%clk 0:00:08]}  Nxe8 {[%clk 0:00:22]} 44. Nf1 {[%clk 0:00:08]}  Kf7 {[%clk 0:00:21]} 45. Ng3 {[%clk 0:00:08]}  Kg6 {[%clk 0:00:21]} 46. Kc3 {[%clk 0:00:08]}  Nc7 {[%clk 0:00:21]} 47. Kb4 {[%clk 0:00:07]}  Ne6 {[%clk 0:00:17]} 48. Ne2 {[%clk 0:00:07]}  b6 {[%clk 0:00:17]} 49. a5 {[%clk 0:00:02]}  bxa5+ {[%clk 0:00:09]} 50. Kxa5 {[%clk 0:00:03]}  c5 {[%clk 0:00:06]} 51. dxc5 {[%clk 0:00:03]}  Nxc5 {[%clk 0:00:07]} 52. b4 {[%clk 0:00:04]}  Nb3+ {[%clk 0:00:07]} 53. Ka4 {[%clk 0:00:03]}  Nd2 {[%clk 0:00:07]} 54. b5 {[%clk 0:00:04]}  Nc4 {[%clk 0:00:06]} 55. Kb4 {[%clk 0:00:03]}  Kf7 {[%clk 0:00:07]} 56. Kc5 {[%clk 0:00:03]}  Ke6 {[%clk 0:00:07]} 57. Nd4+ {[%clk 0:00:03]}  Kd7 {[%clk 0:00:07]} 58. Kxd5 {[%clk 0:00:02]}  Ne3+ {[%clk 0:00:06]} 59. Kc5 {[%clk 0:00:03]}  Ng2 {[%clk 0:00:05]} 60. b6 {[%clk 0:00:03]}  Nxh4 {[%clk 0:00:04]} 61. Nb5 {[%clk 0:00:03]}  Nxf3 {[%clk 0:00:00]} 62. b7 {[%clk 0:00:02]} 1-0


[Site "https://www.chess.com"]

[Event "Titled Tuesday Blitz November 14 Early 2023"]
[White "vishwa_vijeta"]
[Black "Galchenko, Matvey"]
[BlackFideId "24175480"]
[WhiteElo "2529"]
[BlackElo "2940"]
[Result "0-1"]
[Round "3"]
[TimeControl "180+1"]
[Date "2023.11.14"]
[WhiteClock "0:00:13"]
[BlackClock "0:00:15"]
[Board "73"]

1. e4 {[%clk 0:03:00]}  c5 {[%clk 0:02:47]} 2. Nf3 {[%clk 0:02:56]}  g6 {[%clk 0:02:46]} 3. d4 {[%clk 0:02:57]}  cxd4 {[%clk 0:02:47]} 4. Nxd4 {[%clk 0:02:57]}  Bg7 {[%clk 0:02:47]} 5. c4 {[%clk 0:02:58]}  Nc6 {[%clk 0:02:47]} 6. Be3 {[%clk 0:02:58]}  Nf6 {[%clk 0:02:48]} 7. Nc3 {[%clk 0:02:58]}  O-O {[%clk 0:02:48]} 8. Be2 {[%clk 0:02:58]}  d6 {[%clk 0:02:48]} 9. O-O {[%clk 0:02:57]}  Nxd4 {[%clk 0:02:45]} 10. Bxd4 {[%clk 0:02:57]}  a5 {[%clk 0:02:46]} 11. b3 {[%clk 0:02:57]}  Bd7 {[%clk 0:02:45]} 12. f3 {[%clk 0:02:57]}  Bc6 {[%clk 0:02:44]} 13. Qd2 {[%clk 0:02:57]}  Nd7 {[%clk 0:02:43]} 14. Be3 {[%clk 0:02:57]}  Nc5 {[%clk 0:02:40]} 15. Rfc1 {[%clk 0:02:56]}  e6 {[%clk 0:02:39]} 16. Bd4 {[%clk 0:02:53]}  Bxd4+ {[%clk 0:02:34]} 17. Qxd4 {[%clk 0:02:54]}  e5 {[%clk 0:02:32]} 18. Qe3 {[%clk 0:02:54]}  Ne6 {[%clk 0:02:30]} 19. Bf1 {[%clk 0:02:48]}  f5 {[%clk 0:02:30]} 20. exf5 {[%clk 0:02:47]}  gxf5 {[%clk 0:02:29]} 21. Qh6 {[%clk 0:02:45]}  Rf6 {[%clk 0:02:28]} 22. Qh4 {[%clk 0:02:45]}  Qb6+ {[%clk 0:02:23]} 23. Qf2 {[%clk 0:02:43]}  Qxf2+ {[%clk 0:02:23]} 24. Kxf2 {[%clk 0:02:43]}  Nd4 {[%clk 0:02:23]} 25. Ne2 {[%clk 0:02:43]}  Ne6 {[%clk 0:02:23]} 26. Rd1 {[%clk 0:02:42]}  Rd8 {[%clk 0:02:24]} 27. Rd2 {[%clk 0:02:42]}  Kf7 {[%clk 0:02:12]} 28. Rad1 {[%clk 0:02:41]}  Ke7 {[%clk 0:02:13]} 29. Ng3 {[%clk 0:02:37]}  f4 {[%clk 0:02:09]} 30. Ne2 {[%clk 0:02:33]}  Rh6 {[%clk 0:02:09]} 31. h3 {[%clk 0:02:31]}  Rg6 {[%clk 0:02:09]} 32. Nc3 {[%clk 0:02:30]}  Nd4 {[%clk 0:02:09]} 33. Ne2 {[%clk 0:02:24]}  Nf5 {[%clk 0:02:08]} 34. Nc3 {[%clk 0:02:15]}  Ne3 {[%clk 0:02:08]} 35. Re1 {[%clk 0:02:11]}  Rdg8 {[%clk 0:02:07]} 36. g4 {[%clk 0:02:09]}  h5 {[%clk 0:01:24]} 37. Rxe3 {[%clk 0:01:34]}  fxe3+ {[%clk 0:01:22]} 38. Kxe3 {[%clk 0:01:34]}  hxg4 {[%clk 0:01:22]} 39. hxg4 {[%clk 0:01:35]}  Rf8 {[%clk 0:01:20]} 40. Nd5+ {[%clk 0:01:35]}  Bxd5 {[%clk 0:01:21]} 41. Rxd5 {[%clk 0:01:35]}  e4 {[%clk 0:01:10]} 42. Be2 {[%clk 0:01:14]}  exf3 {[%clk 0:01:10]} 43. Bxf3 {[%clk 0:01:15]}  Re6+ {[%clk 0:01:10]} 44. Kf2 {[%clk 0:01:15]}  Ref6 {[%clk 0:01:10]} 45. Rd3 {[%clk 0:01:15]}  b6 {[%clk 0:01:04]} 46. Kg3 {[%clk 0:01:14]}  Re6 {[%clk 0:01:05]} 47. Bd5 {[%clk 0:01:11]}  Re1 {[%clk 0:01:03]} 48. Kh4 {[%clk 0:01:10]}  Kf6 {[%clk 0:00:58]} 49. Rf3+ {[%clk 0:01:06]}  Kg7 {[%clk 0:00:58]} 50. Rd3 {[%clk 0:00:54]}  Kg6 {[%clk 0:00:50]} 51. Bf3 {[%clk 0:00:46]}  Rf6 {[%clk 0:00:49]} 52. g5 {[%clk 0:00:44]}  Rfe6 {[%clk 0:00:42]} 53. Bg4 {[%clk 0:00:37]}  R1e4 {[%clk 0:00:16]} 54. Kg3 {[%clk 0:00:35]}  R6e5 {[%clk 0:00:17]} 55. Bf3 {[%clk 0:00:33]}  Rxg5+ {[%clk 0:00:15]} 56. Kf2 {[%clk 0:00:33]}  Re6 {[%clk 0:00:16]} 57. Rd4 {[%clk 0:00:30]}  Rf6 {[%clk 0:00:16]} 58. Rd3 {[%clk 0:00:30]}  Kf5 {[%clk 0:00:16]} 59. Rd5+ {[%clk 0:00:30]}  Kg6 {[%clk 0:00:13]} 60. Rd3 {[%clk 0:00:30]}  Kf7 {[%clk 0:00:14]} 61. Ke2 {[%clk 0:00:29]}  Ke6 {[%clk 0:00:13]} 62. Kd2 {[%clk 0:00:29]}  Kd7 {[%clk 0:00:12]} 63. Kc3 {[%clk 0:00:29]}  Kc7 {[%clk 0:00:12]} 64. Bd5 {[%clk 0:00:29]}  Rfg6 {[%clk 0:00:12]} 65. Rf3 {[%clk 0:00:27]}  Rg3 {[%clk 0:00:12]} 66. Rxg3 {[%clk 0:00:27]}  Rxg3+ {[%clk 0:00:13]} 67. Kd4 {[%clk 0:00:26]}  Rh3 {[%clk 0:00:12]} 68. Be4 {[%clk 0:00:18]}  Rh2 {[%clk 0:00:13]} 69. a3 {[%clk 0:00:19]}  Ra2 {[%clk 0:00:08]} 70. Bb1 {[%clk 0:00:15]}  Rb2 {[%clk 0:00:06]} 71. Be4 {[%clk 0:00:06]}  Rxb3 {[%clk 0:00:07]} 72. Bd5 {[%clk 0:00:07]}  Rxa3 {[%clk 0:00:07]} 73. Ke4 {[%clk 0:00:06]}  Rg3 {[%clk 0:00:08]} 74. Kf5 {[%clk 0:00:07]}  Re3 {[%clk 0:00:08]} 75. Kf4 {[%clk 0:00:07]}  Re5 {[%clk 0:00:09]} 76. Kf3 {[%clk 0:00:07]}  a4 {[%clk 0:00:10]} 77. Be4 {[%clk 0:00:08]}  a3 {[%clk 0:00:11]} 78. Bb1 {[%clk 0:00:08]}  Kc6 {[%clk 0:00:12]} 79. Ba2 {[%clk 0:00:09]}  Kc5 {[%clk 0:00:13]} 80. Kf2 {[%clk 0:00:09]}  Kb4 {[%clk 0:00:13]} 81. Kf3 {[%clk 0:00:10]}  Kc3 {[%clk 0:00:14]} 82. Kf2 {[%clk 0:00:11]}  Kb2 {[%clk 0:00:14]} 83. Kf3 {[%clk 0:00:12]}  Kxa2 {[%clk 0:00:15]} 84. Kf2 {[%clk 0:00:13]}  Kb3 {[%clk 0:00:15]} 0-1


[Site "https://www.chess.com"]

[Event "Titled Tuesday Blitz November 14 Early 2023"]
[White "Ashraf, Artin"]
[Black "Molenda, Marcin"]
[WhiteFideId "22514805"]
[BlackFideId "1173065"]
[WhiteElo "2921"]
[BlackElo "2526"]
[Result "1-0"]
[Round "3"]
[TimeControl "180+1"]
[Date "2023.11.14"]
[WhiteClock "0:00:22"]
[BlackClock "0:01:09"]
[Board "75"]

1. e4 {[%clk 0:03:00]}  e5 {[%clk 0:02:58]} 2. Nf3 {[%clk 0:03:00]}  Nf6 {[%clk 0:02:58]} 3. Nxe5 {[%clk 0:02:53]}  d6 {[%clk 0:02:58]} 4. Nf3 {[%clk 0:02:53]}  Nxe4 {[%clk 0:02:58]} 5. d3 {[%clk 0:02:51]}  Nf6 {[%clk 0:02:57]} 6. g3 {[%clk 0:02:52]}  d5 {[%clk 0:02:56]} 7. Bg2 {[%clk 0:02:52]}  Bd6 {[%clk 0:02:57]} 8. O-O {[%clk 0:02:52]}  O-O {[%clk 0:02:58]} 9. a3 {[%clk 0:02:51]}  h6 {[%clk 0:02:55]} 10. b4 {[%clk 0:02:48]}  a5 {[%clk 0:02:52]} 11. b5 {[%clk 0:02:47]}  a4 {[%clk 0:02:50]} 12. Nc3 {[%clk 0:02:46]}  Nbd7 {[%clk 0:02:46]} 13. Re1 {[%clk 0:02:45]}  Re8 {[%clk 0:02:44]} 14. Be3 {[%clk 0:02:44]}  Qe7 {[%clk 0:02:27]} 15. Bf4 {[%clk 0:02:38]}  Qf8 {[%clk 0:02:24]} 16. Rxe8 {[%clk 0:02:32]}  Nxe8 {[%clk 0:02:22]} 17. Nxd5 {[%clk 0:02:30]}  Bxa3 {[%clk 0:02:20]} 18. Nxc7 {[%clk 0:02:12]}  Nxc7 {[%clk 0:02:19]} 19. Bxc7 {[%clk 0:02:13]}  Bb2 {[%clk 0:02:07]} 20. Ra2 {[%clk 0:02:05]}  a3 {[%clk 0:02:07]} 21. c4 {[%clk 0:02:05]}  Qb4 {[%clk 0:01:55]} 22. Ne1 {[%clk 0:01:39]}  Nc5 {[%clk 0:01:52]} 23. Bd6 {[%clk 0:01:29]}  Qb3 {[%clk 0:01:52]} 24. Qxb3 {[%clk 0:01:28]}  Nxb3 {[%clk 0:01:52]} 25. Nc2 {[%clk 0:01:27]}  Nc1 {[%clk 0:01:51]} 26. Bxa3 {[%clk 0:01:18]}  Nxa2 {[%clk 0:01:44]} 27. Bxb2 {[%clk 0:01:18]}  Bf5 {[%clk 0:01:41]} 28. Bxb7 {[%clk 0:01:01]}  Rb8 {[%clk 0:01:39]} 29. Be4 {[%clk 0:00:53]}  Bxe4 {[%clk 0:01:39]} 30. dxe4 {[%clk 0:00:54]}  Rd8 {[%clk 0:01:19]} 31. b6 {[%clk 0:00:43]}  Kf8 {[%clk 0:01:11]} 32. c5 {[%clk 0:00:31]}  Ke7 {[%clk 0:01:11]} 33. b7 {[%clk 0:00:24]}  Kd7 {[%clk 0:01:10]} 34. Be5 {[%clk 0:00:23]}  Kc6 {[%clk 0:01:10]} 35. b8=Q {[%clk 0:00:22]}  Rxb8 {[%clk 0:01:09]} 36. Bxb8 {[%clk 0:00:22]} 1-0


[Site "https://www.chess.com"]